Cogmind - Beta 17 @@@ ROGUE MODE // 2026.08.02 @ 19:29:24 Player: OBLIQUE Result: Core destroyed Performance ------------- Evolutions (8) 4000 Regions Visited (27) 5400 Robots Destroyed (77) 385 Value Destroyed (4190) 4190 Prototype IDs (70) 1400 Alien Tech Used (2) 400 Bonus (9371) 9371 TOTAL SCORE: 25146 Bonus ------- Follower Combat Kills 377 Aligned with FarCom 300 Met Data Miner 300 Met Zhirov 300 Met Warlord at Base 500 MAIN.C Attacked Warlord 500 Warlord Defense Kills 94 Met Warlord at Research 2000 Hacked God Mode 5000 Cogmind --------- Core Integrity 0/1450 Matter 300/300 Energy 700/700 System Corruption 3% Temperature Cool (0) Movement Flying (30) Location -2/Research Parts ------- > --- POWER (1) -------- (None) > --- PROPULSION (4) --- Impulse Thruster Electron Diverter Electron Diverter > --- UTILITY (15) ----- Experimental Energy Well Machine Analyzer Enhanced Optical Array Advanced Sensor Array Advanced Signal Interpreter Advanced Terrain Scan Processor Advanced Terrain Scan Processor Improved Cloaking Device Advanced Hacking Suite Advanced Hacking Suite Improved System Shield Advanced System Shield > --- WEAPON (3) ------- Improved Remote Datajack Thunder Hammer > --- INVENTORY (5) ---- Vortex Catalyst Activator (10) Peak State ------------ > --- POWER ------------ Backup Power III > --- PROPULSION ------- Impulse Thruster Q-thruster Electron Diverter Electron Diverter > --- UTILITY ---------- Experimental Energy Well Trap Scanner Machine Analyzer Enhanced Optical Array Advanced Sensor Array Advanced Signal Interpreter Terrain Scanner Advanced Terrain Scan Processor Advanced Terrain Scan Processor Improved Cloaking Device Experimental Utility Shielding Advanced Hacking Suite Advanced Hacking Suite Improved System Shield Advanced System Shield > --- WEAPON ----------- RU-N14's Throwing Claymores v3 RU-N14's Throwing Claymores v3 Particle Cleaver > --- INVENTORY -------- Vortex Catalyst Activator Improved Remote Datajack RU-N14's Throwing Claymores v3 [Rating: 141] Favorites ----------- Power Light Ion Engine Engine Light Ion Engine Power Core Light Nuclear Core Reactor Heavy Antimatter Reactor Propulsion Improved Treads Treads Improved Treads Leg Enhanced Biometal Leg Hover Unit Combat Gravmag System Flight Unit Electron Diverter Utility Hacking Suite Device Terrain Scanner Storage Medium Storage Unit Processor Advanced Terrain Scan Processor Hackware Hacking Suite Protection Experimental Utility Shielding Weapon Phasing Sabre Energy Gun EM Pulse Gun Energy Cannon Heavy Neutron Cannon Ballistic Gun Assault Rifle Ballistic Cannon Slug Cannon Launcher Rocket Launcher Special Weapon RU-N14's Throwing Claymores v3 Impact Weapon Thunder Hammer Slashing Weapon Phasing Sabre Piercing Weapon Spear Special Melee Weapon Datajack Build | -11 -10 -10 -9 -9 -9 -8 -8 -7 -7 -7 -7 -7 -7 -6 -6 -5 -5 -5 -5 -4 -4 -4 -4 -4 -3 -3 -2 ------- Run | Yrd Mat Min Mat Min Exi Min Mat Fac Was Fac Low Low Dat Pro Fac Fac Upp Upp Zhi Pro Fac Upp Upp War Pro Res Res Slots Evolved 16 | . . . 2 . . . 2 2 . . . . . . 2 2 . . . . 2 . . . . 2 2 Power . | . . . . . . . . . . . . . . . . . . . . . . . . . . . . Propulsion 2 | . . . . . . . 1 . . . . . . . . . . . . . . . . . . 1 . Utility 13 | . . . 2 . . . 1 2 . . . . . . 2 2 . . . . 2 . . . . 1 1 Weapon 1 | . . . . . . . . . . . . . . . . . . . . . . . . . . . 1 Parts Attached 117 | 6 7 1 6 6 2 . 9 4 . 3 9 . . . 5 7 4 2 5 3 10 . 2 13 . 6 7 Power 8 | 1 1 . . 1 . . 1 . . . . . . . 1 . . . 1 1 . . . . . . 1 Engine 5 | 1 1 . . 1 . . . . . . . . . . . . . . . 1 . . . . . . 1 Core 2 | . . . . . . . 1 . . . . . . . 1 . . . . . . . . . . . . Reactor 1 | . . . . . . . . . . . . . . . . . . . 1 . . . . . . . . Propulsion 33 | 2 2 . 2 2 . . 5 1 . . 2 . . . 1 5 1 . . 1 4 . . 4 . 1 . Treads 10 | 2 2 . 2 2 . . 2 . . . . . . . . . . . . . . . . . . . . Leg 1 | . . . . . . . . . . . . . . . . . . . . . . . . 1 . . . Wheel . | . . . . . . . . . . . . . . . . . . . . . . . . . . . . Hover 13 | . . . . . . . 3 1 . . 1 . . . . 5 1 . . 1 . . . 1 . . . Flight 9 | . . . . . . . . . . . 1 . . . 1 . . . . . 4 . . 2 . 1 . Utility 44 | 1 2 . 2 . . . 2 2 . 2 5 . . . 3 2 1 2 4 . 5 . 2 2 . 5 2 Device 17 | . . . 1 . . . . . . . 1 . . . 1 2 . 1 2 . 3 . 1 1 . 3 1 Storage 5 | 1 1 . . . . . . . . 1 . . . . 1 . . . . . . . . 1 . . . Processor 13 | . . . 1 . . . 1 2 . 1 4 . . . . . 1 . . . 1 . . . . 1 1 Hackware 8 | . 1 . . . . . 1 . . . . . . . 1 . . 1 1 . 1 . 1 . . 1 . Protection 1 | . . . . . . . . . . . . . . . . . . . 1 . . . . . . . . Artifact . | . . . . . . . . . . . . . . . . . . . . . . . . . . . . Weapon 32 | 2 2 1 2 3 2 . 1 1 . 1 2 . . . . . 2 . . 1 1 . . 7 . . 4 Energy Gun 4 | 2 . . . . . . . . . . . . . . . . . . . . . . . 2 . . . Energy Cannon 1 | . . . . . . . . . . . . . . . . . . . . . . . . 1 . . . Ballistic Gun 7 | . 2 1 2 1 . . 1 . . . . . . . . . . . . . . . . . . . . Ballistic Cannon 1 | . . . . . . . . . . . . . . . . . . . . . . . . . . . 1 Launcher 3 | . . . . 2 . . . . . . . . . . . . . . . . . . . 1 . . . Special Weapon 5 | . . . . . . . . . . . . . . . . . . . . . . . . 3 . . 2 Impact Weapon 1 | . . . . . . . . . . . . . . . . . . . . . 1 . . . . . . Slashing Weapon 8 | . . . . . 1 . . 1 . . 2 . . . . . 2 . . 1 . . . . . . 1 Piercing Weapon 1 | . . . . . . . . . . 1 . . . . . . . . . . . . . . . . . Special Melee Weapon 1 | . . . . . 1 . . . . . . . . . . . . . . . . . . . . . . Unidentified Prototypes 17 | . . . . . . . . . . . . . . . . . . . 4 . 2 . . 10 . . 1 Parts Lost 30 | . . 1 . 2 . . 3 . . 5 . . . . . . 4 3 . . 2 2 . . . . 8 Power 6 | . . . . 1 . . 1 . . . . . . . . . . 1 . . 1 . . . . . 2 Propulsion 8 | . . . . . . . 1 . . 3 . . . . . . 1 . . . . 2 . . . . 1 Utility 11 | . . . . . . . . . . 2 . . . . . . 3 2 . . 1 . . . . . 3 Weapon 5 | . . 1 . 1 . . 1 . . . . . . . . . . . . . . . . . . . 2 Highest Loss Streak 7 | . . 1 . 1 . . 2 . . 4 . . . . . . 3 1 . . 2 2 . . . . 7 To Critical Strikes . | . . . . . . . . . . . . . . . . . . . . . . . . . . . . Average Backups 6 | . 6 9 9 9 9 10 9 9 10 10 5 5 5 4 3 3 4 5 4 5 4 4 4 4 4 4 3 Power . | . 1 1 1 1 1 1 1 1 1 1 1 1 1 1 . . . . . . . . . . . . . Propulsion 2 | . 1 3 4 5 4 4 2 . 1 1 . . . . . 2 2 2 3 3 3 4 3 . . . . Utility 2 | . . 2 2 2 3 5 5 4 6 6 4 4 4 3 3 1 1 1 . . . . . . . . . Weapon 1 | . 2 3 1 1 . . . 3 2 1 . . . . . . . 1 1 . . . . 2 3 3 2 Tool/Special . | . . . . . . . . . . . . . . . . . . . . . . . . . . . . Unused Backups 27 | . 3 1 4 2 . . . 1 . 2 2 . . 1 . 1 . 1 . . 1 . 2 6 . . . Power 3 | . 1 . . 1 . . . . . 1 . . . . . . . . . . . . . . . . . Propulsion 5 | . 1 . . 1 . . . . . . . . . . . . . . . . . . . 3 . . . Utility 10 | . . . 3 . . . . 1 . 1 1 . . 1 . 1 . . . . 1 . . 1 . . . Weapon 8 | . 1 1 1 . . . . . . . 1 . . . . . . 1 . . . . 1 2 . . . Tool/Special 1 | . . . . . . . . . . . . . . . . . . . . . . . 1 . . . . Average Slot Usage (%) 93 | . 94 100 99 96 91 100 96 87 92 92 67 84 84 84 86 98 91 87 92 100 97 93 93 99 100 99 92 Engine 4 | . 14 14 11 8 11 11 3 . . . . . . . . . . . . 3 3 . . 4 5 4 3 Core 1 | . . . . . . . 5 7 7 5 . . . . . 5 5 1 . . . . . . . . . Treads 9 | . 28 28 22 22 22 22 25 . . . . . . . . . . . . . . . . . . . . Hover 4 | . . . . . . . . 23 23 22 6 7 7 7 6 15 16 17 17 17 . . . . . . . Flight 4 | . . . . . . . . . . . 1 7 7 7 7 1 . . . . 14 14 15 14 15 18 16 Device 12 | . . . 11 11 11 11 9 7 7 5 7 7 7 7 11 21 21 18 21 17 19 15 19 21 21 21 16 Storage 5 | . 14 14 11 11 11 11 9 7 7 7 . . . . 4 5 3 . . . . . . 4 5 4 4 Processor 18 | . . . 10 11 11 11 9 22 23 23 31 38 38 38 28 23 23 28 23 23 25 26 21 21 21 19 20 Hackware 12 | . 8 14 11 11 11 11 17 15 15 14 7 7 7 7 10 11 5 7 12 17 15 21 21 16 15 16 17 Protection 1 | . . . . . . . . . . . . . . . . . . . 1 5 5 5 5 5 5 4 3 Energy Gun 1 | . 15 6 . . . . . . . . . . . . . . . . . . . . . . . . . Ballistic Gun 4 | . 12 21 22 19 3 . 4 . . . . . . . . . . . . . . . . . . . . Slashing Weapon 6 | . . . . . 2 11 8 3 7 7 10 15 15 15 13 11 11 11 11 11 9 5 5 1 . . 1 Peak Build Rating 141 | 6 12 12 19 19 20 20 30 36 33 39 40 40 40 40 51 69 70 68 84 85 92 88 93 113 111 125 141 Average Rating 51 | 4 8 11 17 18 17 20 26 30 33 35 31 40 40 39 43 67 66 63 74 81 89 86 91 108 111 123 127 On Entrance 50 | . 6 12 12 19 19 20 20 26 33 33 24 40 40 40 39 51 68 63 63 84 81 87 88 92 111 111 125 Avg Prop Armor Cover (%) 14 | . . . . . . . . . . 10 17 15 15 15 12 9 . 15 6 . . . . 7 . . . Naked Turns . | . . . . . . . . . . . . . . . . . . . . . . . . . . . . Heaviest Build 38 | 11 19 19 22 22 21 17 21 19 19 21 7 6 6 6 13 23 26 17 31 31 18 13 14 24 24 25 38 Greatest Support 69 | 40 46 46 46 46 46 46 69 23 23 24 8 8 8 8 14 42 37 37 37 40 40 22 22 24 24 33 33 Greatest Overweight (x) 5 | . . . . . . . . . . 4 1 . . . . . . . . . . 2 . 5 . . 1 Average Overweight (x) . | . . . . . . . . . . . . . . . . . . . . . . . . . . . . Largest Inventory Capacity 10 | 8 10 10 10 10 10 10 10 10 10 10 10 5 5 5 5 5 5 5 5 5 5 5 5 5 5 5 5 Average Capacity 7 | 6 9 10 10 10 10 10 10 10 10 10 5 5 5 5 5 5 5 5 5 5 5 5 5 5 5 5 5 Most Carried 10 | 2 10 10 10 10 10 10 10 10 10 10 9 5 5 5 5 5 5 5 5 5 5 5 5 5 5 5 5 Average Carried 6 | . 6 9 9 9 9 10 9 9 10 9 5 5 5 4 4 4 4 4 4 4 4 4 4 4 5 5 3 Final Capacity 10 | 8 10 10 10 10 10 10 10 10 10 10 5 5 5 5 5 5 5 5 5 5 5 5 5 5 5 5 5 Final Carried 10 | 2 10 10 10 10 10 10 8 10 10 10 5 5 5 5 4 5 5 5 5 5 5 3 5 5 5 5 2 Class Distribution -------------------- 21% | Derelict-Scout 19% | Hacker-Ninja 14% | Mutant 13% | Scavenger-Mutant 11% | Scavenger-Assassin 6% | Hacker-Scout 5% | Scavenger-Scout Dominant Class ---------------- Mutant | -10/Materials Mutant | -10/Mines Mutant | -9/Materials Scavenger-Mutant | -9/Mines Scavenger-Mutant | -9/Exiles Scavenger-Assassin | -8/Mines Scavenger-Assassin | -8/Materials Scavenger-Scout | -7/Factory Scavenger-Scout | -7/Waste Scavenger-Scout | -7/Factory Assassin | -7/Lower Caves Derelict-Scout | -7/Lower Caves Derelict-Scout | -7/Data Miner Derelict-Scout | -6/Proximity Caves Hacker-Scout | -6/Factory Hacker-Ninja | -5/Factory Derelict-Ninja | -5/Upper Caves Derelict-Scout | -5/Upper Caves Hacker-Scout | -5/Zhirov Derelict-Scout | -4/Proximity Caves Derelict-Scout | -4/Factory Hacker-Scout | -4/Upper Caves Hacker-Ninja | -4/Upper Caves Hacker-Ninja | -4/Warlord Hacker-Ninja | -3/Proximity Caves Hacker-Ninja | -3/Research Hacker-Ninja | -2/Research Resources | -11 -10 -10 -9 -9 -9 -8 -8 -7 -7 -7 -7 -7 -7 -6 -6 -5 -5 -5 -5 -4 -4 -4 -4 -4 -3 -3 -2 ----------- Run | Yrd Mat Min Mat Min Exi Min Mat Fac Was Fac Low Low Dat Pro Fac Fac Upp Upp Zhi Pro Fac Upp Upp War Pro Res Res Matter Collected 2400 | 182 213 217 222 309 . 20 94 64 . 35 122 33 . 10 37 91 40 20 . 90 110 40 20 180 . . 251 Remotely . | . . . . . . . . . . . . . . . . . . . . . . . . . . . . Salvage Created 2738 | . 214 80 370 472 . 52 437 64 . 104 . . . 21 39 155 170 . . . 194 88 . 61 4 . 213 Parts 148 | . 21 . 17 32 . 9 19 2 . 6 . . . . 7 2 10 . . . 15 3 . . . . 5 Haulers Intercepted 2 | . . . 2 . . . . . . . . . . . . . . . . . . . . . . . . Recyclers Shooed 5 | . 1 . 3 . . . . . . . . . . . . . . . . . . . . . . . 1 Parts Field Recycled . | . . . . . . . . . . . . . . . . . . . . . . . . . . . . Retrieved Matter . | . . . . . . . . . . . . . . . . . . . . . . . . . . . . Parts Self-Destructed 18 | . . . . . . . . . . . . . . . . . 15 . . . . 2 1 . . . . Prevented 2 | . . . . . . . . . . . . . . . . . 1 . . . . 1 . . . . . Parts Restored . | . . . . . . . . . . . . . . . . . . . . . . . . . . . . Kills | -11 -10 -10 -9 -9 -9 -8 -8 -7 -7 -7 -7 -7 -7 -6 -6 -5 -5 -5 -5 -4 -4 -4 -4 -4 -3 -3 -2 ------- Run | Yrd Mat Min Mat Min Exi Min Mat Fac Was Fac Low Low Dat Pro Fac Fac Upp Upp Zhi Pro Fac Upp Upp War Pro Res Res Combat Hostiles Destroyed 54 | . 3 7 3 14 . . 8 . . 1 . . . . . . 7 . . . 2 4 . 1 1 . 3 Melee 18 | . . . . . . . 6 . . 1 . . . . . . 7 . . . 2 2 . . . . . Guns 27 | . 3 7 3 12 . . 2 . . . . . . . . . . . . . . . . . . . . AOE 5 | . . . . 2 . . . . . . . . . . . . . . . . . . . . . . 3 Classes Destroyed 22 | . 4 2 3 3 . 2 1 . . . . . . 1 . . . . . . 2 . . 1 1 . 2 Worker 8 | . 1 . 2 1 . . 1 . . . . . . . 1 1 . . . . . . . . . . 1 Builder 5 | . . . . . . 2 . . . . . . . . 1 . . . . . 2 . . . . . . Tunneler 1 | . . . . . . 1 . . . . . . . . . . . . . . . . . . . . . Hauler 2 | . . . 2 . . . . . . . . . . . . . . . . . . . . . . . . Recycler 4 | . . . 1 . . . . 1 . . . . . . . 1 . . . . . . . . . . 1 Minesweeper 1 | . . . . . . . . . . . . . . 1 . . . . . . . . . . . . . Mechanic 1 | . . . . . . . . . . . . . . . . . . . . . 1 . . . . . . Operator 1 | . 1 . . . . . . . . . . . . . . . . . . . . . . . . . . Drone 1 | . . . . . . . . . . . . . . . . . . . . . . . . . 1 . . Watcher 6 | . 2 . 2 . . . . . . 1 . . . . . . . . . . 1 . . . . . . Swarmer 16 | . . . . 5 . . . . . . . . . . . . 7 . . . . 4 . . . . . Cutter 2 | . . . . . . . . . . . . . . . . . . . . . 2 . . . . . . Grunt 16 | . 3 . 2 6 . . 5 . . . . . . . . . . . . . . . . . . . . Brawler 1 | . . . . 1 . . . . . . . . . . . . . . . . . . . . . . . Duelist 2 | . . . . 2 . . . . . . . . . . . . . . . . . . . . . . . Protector 1 | . . . . . . . . . . . . . . . . . . . . . . . . 1 . . . Sentry 4 | . . . 1 . . . 2 . . 1 . . . . . . . . . . . . . . . . . Demolisher 1 | . . 1 . . . . . . . . . . . . . . . . . . . . . . . . . Hunter 1 | . . . . . . . 1 . . . . . . . . . . . . . . . . . . . . Assembled 6 | . . 6 . . . . . . . . . . . . . . . . . . . . . . . . . Marauder 1 | . . . . . . . . . . . . . . . . . . . . . . . . . . . 1 Knight 1 | . . . . . . . . . . . . . . . . . . . . . . . . . . . 1 Best Kill Streak 5 | . 3 3 2 4 . 1 2 1 . 1 . . . 1 1 2 4 . . . 3 4 . 1 1 . 5 Combat Bots Only 4 | . 2 3 2 4 . . 2 . . 1 . . . . . . 4 . . . 2 4 . 1 1 . 2 Max Kills in Single Turn 2 | . 1 1 2 1 . 1 1 1 . 1 . . . 1 1 1 1 . . . 1 1 . 1 1 . 1 Gunslinging . | . . . . . . . . . . . . . . . . . . . . . . . . . . . . Exploded 1 | . . . . 1 . . . . . . . . . . . . . . . . . . . . . . 1 Melee 1 | . . . . . . . 1 . . 1 . . . . . . 1 . . . 1 1 . . . . . Uniques/NPCs Destroyed 1 | . . . . . . . . . . . . . . . . . . . . . . . . . . . 1 Warlord (-2/Research) Combat | -11 -10 -10 -9 -9 -9 -8 -8 -7 -7 -7 -7 -7 -7 -6 -6 -5 -5 -5 -5 -4 -4 -4 -4 -4 -3 -3 -2 -------- Run | Yrd Mat Min Mat Min Exi Min Mat Fac Was Fac Low Low Dat Pro Fac Fac Upp Upp Zhi Pro Fac Upp Upp War Pro Res Res Hostile Shots Fired 512 | . 21 18 21 51 . . 71 . 1 136 1 . . . . . 76 24 . . 6 34 . . . 12 40 Missed 183 | . 7 9 6 17 . . 18 . 1 59 . . . . . . 28 11 . . 2 7 . . . 6 12 Hits 329 | . 14 9 15 34 . . 53 . . 77 1 . . . . . 48 13 . . 4 27 . . . 6 28 Melee 8 | . . . . 4 . . . . . 1 . . . . . . . . . . 2 . . . . . 1 Projectile 321 | . 14 9 15 30 . . 53 . . 76 1 . . . . . 48 13 . . 2 27 . . . 6 27 AOE 5 | . . 5 . . . . . . . . . . . . . . . . . . . . . . . . . Critical Strikes 8 | . 1 . . . . . 2 . . 1 . . . . . . 1 . . . 1 . . . . . 2 Actively Blocked 1 | . . . . . . . . . . . . . . . . . . . . . . . . . . . 1 Part Disruptions 3 | . . . . . . . . . . 1 . . . . . . . 1 . . . . . . . . 1 Actively Blocked 1 | . . . . . . . . . . . . . . . . . . . . . . . . . . . 1 Damage Taken 4706 | . 190 281 207 458 . . 759 . . 604 18 . . . . . 771 227 . . 121 401 . . . 131 538 Core 1087 | . 22 31 56 79 . . 161 . . 309 . . . . . . 142 13 . . 33 153 . . . 64 24 Absorbed by Shields . | . . . . . . . . . . . . . . . . . . . . . . . . . . . . Redirected to Shielding 175 | . . . . . . . . . . . . . . . . . . . . . 18 74 . . . . 83 Regen/Repaired (Parts) 17 | . . . . . . . . . . . . . . . . . . . . . . . . 17 . . . Core Remaining (%) 80 | 100 . 78 . . . 66 70 . . . . . . 55 100 . . . . 84 . . . . 75 95 . Volleys Fired 134 | . 20 20 27 38 . . 8 . . . . . . . . . . . . . . . . . . . 21 Largest 3 | . 2 2 2 2 . . 1 . . . . . . . . . . . . . . . . . . . 3 Hottest 60 | . 60 60 46 56 . . 23 . . . . . . . . . . . . . . . . . . . 40 Shots Fired 235 | . 40 40 54 64 . . 8 . . . . . . . . . . . . . . . . . . . 29 Gun 202 | . 40 40 54 60 . . 8 . . . . . . . . . . . . . . . . . . . . Cannon 7 | . . . . . . . . . . . . . . . . . . . . . . . . . . . 7 Launcher 4 | . . . . 4 . . . . . . . . . . . . . . . . . . . . . . . Special 22 | . . . . . . . . . . . . . . . . . . . . . . . . . . . 22 Kinetic 188 | . 20 39 54 60 . . 8 . . . . . . . . . . . . . . . . . . . 7 Thermal . | . . . . . . . . . . . . . . . . . . . . . . . . . . . . Explosive 19 | . . . . 4 . . . . . . . . . . . . . . . . . . . . . . 15 Electromagnetic 21 | . 20 1 . . . . . . . . . . . . . . . . . . . . . . . . . Robot Hit Streak 15 | . 8 5 14 6 . . 12 . . . . . . . . . . . . . . . . . . . 15 Robot Miss Streak 6 | . 6 3 3 3 . . . . . . . . . . . . . . . . . . . . . . 2 Penetration Max . | . . . . . . . . . . . . . . . . . . . . . . . . . . . . Secondary Targets 2 | . . . . 2 . . . . . . . . . . . . . . . . . . . . . . . Max Gunslinging Chain 1 | . . . . 1 . . . . . . . . . . . . . . . . . . . . . . . Shots Hit Robots 232 | . 25 22 37 37 . 4 25 1 . 2 . . . 5 2 4 14 . . . 12 9 . 2 1 1 29 Core Hits 122 | . 9 14 16 22 . 1 13 1 . 2 . . . 2 2 1 7 . . . 6 1 . . . . 25 Critical Kills 1 | . 1 . . . . . . . . . . . . . . . . . . . . . . . . . . Critical Parts Destroyed 5 | . 1 1 . . . . . . . . . . . . . . . . . . . 1 . 1 . 1 . Critical Strikes 13 | . 3 1 . . . . 2 . . 2 . . . 1 . . . . . . . 1 . 1 . 1 1 Destroy 3 | . 2 1 . . . . . . . . . . . . . . . . . . . . . . . . . Corrupt 1 | . 1 . . . . . . . . . . . . . . . . . . . . . . . . . . Smash 3 | . . . . . . . . . . . . . . . . . . . . . . 1 . 1 . 1 . Sever 4 | . . . . . . . 2 . . . . . . 1 . . . . . . . . . . . . 1 Impale 2 | . . . . . . . . . . 2 . . . . . . . . . . . . . . . . . Melee Attacks 195 | . . . . . . 5 22 6 . 23 2 3 . 6 11 6 30 1 . 1 26 19 1 4 3 14 12 Impact 42 | . . . . . . . . . . . . . . . . . . . . . 1 13 . 4 3 14 7 Slashing 131 | . . . . . . 5 22 6 . 1 2 3 . 6 11 6 30 1 . 1 25 6 1 . . . 5 Piercing 22 | . . . . . . . . . . 22 . . . . . . . . . . . . . . . . . Sneak Attacks 24 | . . . . . . 4 1 1 . 1 . . . 1 2 4 . . . . 3 . . 1 . 1 5 Combat Hostiles 1 | . . . . . . . . . . . . . . . . . . . . . . . . 1 . . . Follow-up Attacks 11 | . . . . . . . . . . . . . . . . 1 3 . . . 3 4 . . . . . Damage Inflicted 9576 | . 384 262 555 654 . 265 689 78 . 88 . . . 190 134 266 521 . . . 673 476 . 102 37 127 4075 Guns 1788 | . 361 262 530 512 . . 123 . . . . . . . . . . . . . . . . . . . . Cannons 36 | . . . . . . . . . . . . . . . . . . . . . . . . . . . 36 Explosions 2663 | . 23 . . 114 . . . . . . . . . . . . . . . . . . . . . . 2526 Melee 4320 | . . . . . . 265 566 78 . 88 . . . 190 134 266 521 . . . 673 476 . 102 37 127 797 Ramming 53 | . . . 25 28 . . . . . . . . . . . . . . . . . . . . . . . Kinetic 1622 | . 169 252 530 512 . . 123 . . . . . . . . . . . . . . . . . . . 36 Thermal 23 | . 23 . . . . . . . . . . . . . . . . . . . . . . . . . . Explosive 2640 | . . . . 114 . . . . . . . . . . . . . . . . . . . . . . 2526 Electromagnetic 202 | . 192 10 . . . . . . . . . . . . . . . . . . . . . . . . . Impact 1028 | . . . . . . . . . . . . . . . . . . . . . . 366 . 102 37 127 396 Slashing 3920 | . . . . . . 265 566 78 . . . . . 190 134 266 521 . . . 673 110 . . . . 1117 Piercing 88 | . . . . . . . . . . 88 . . . . . . . . . . . . . . . . . Highest Corruption 7 | . . . . . . . . . 7 7 7 7 7 7 . . . 2 2 . . . . . . . 3 Average Corruption 6 | . . . . . . . . . 7 7 7 7 7 7 . . . 1 1 . . . . . . . 2 Corruption Purged 2 | . . . . . . . . . . . . . . . . . . . 2 . . . . . . . . Corruption Blocked . | . . . . . . . . . . . . . . . . . . . . . . . . . . . . Effects 49 | . . . . . . . . . 2 13 12 11 2 6 . . . . 2 . . . . . . . 1 Message Errors 17 | . . . . . . . . . 1 1 4 7 . 2 . . . . 2 . . . . . . . . Matter Fused 12 | . . . . . . . . . . 5 1 4 1 1 . . . . . . . . . . . . . Heat Flow Errors 10 | . . . . . . . . . . 3 4 . . 2 . . . . . . . . . . . . 1 Energy Discharges 5 | . . . . . . . . . . 2 2 . . 1 . . . . . . . . . . . . . Parts Fused 1 | . . . . . . . . . . 1 . . . . . . . . . . . . . . . . . Data Loss (minor) 2 | . . . . . . . . . 1 . . . 1 . . . . . . . . . . . . . . Data Loss (major) 1 | . . . . . . . . . . . 1 . . . . . . . . . . . . . . . . Alerts 1 | . . . . . . . . . . 1 . . . . . . . . . . . . . . . . . Overload Shots . | . . . . . . . . . . . . . . . . . . . . . . . . . . . . Overflow Damage 733 | . . . . . . 118 . . . . . . . 39 . 76 15 . . . 112 171 . 28 7 127 40 Projectiles . | . . . . . . . . . . . . . . . . . . . . . . . . . . . . Explosions 25 | . . . . . . . . . . . . . . . . . . . . . . . . . . . 25 Melee 708 | . . . . . . 118 . . . . . . . 39 . 76 15 . . . 112 171 . 28 7 127 15 Knockbacks 4 | . . . . . . . . . . . . . . . . . . . . . . 1 . 1 1 1 . Impact 4 | . . . . . . . . . . . . . . . . . . . . . . 1 . 1 1 1 . Kinetic . | . . . . . . . . . . . . . . . . . . . . . . . . . . . . Secondary . | . . . . . . . . . . . . . . . . . . . . . . . . . . . . Self-Inflicted Damage 32 | . 21 . . 11 . . . . . . . . . . . . . . . . . . . . . . . Shots 2 | . 1 . . 1 . . . . . . . . . . . . . . . . . . . . . . . Rammed 7 | . . . 3 4 . . . . . . . . . . . . . . . . . . . . . . . Targets Rammed 9 | . . . 4 5 . . . . . . . . . . . . . . . . . . . . . . . Kicked . | . . . . . . . . . . . . . . . . . . . . . . . . . . . . Crushed 2 | . . . 1 1 . . . . . . . . . . . . . . . . . . . . . . . Highest Temperature 267 | . 72 . 7 15 . . 5 . . 266 267 . . 239 . . . . . . 3 3 . . . . 176 Average Temperature 73 | . 32 . 5 6 . . 3 . . 115 134 . . 131 . . . . . . 3 3 . . . . 100 Received Heat Transfer 896 | . 114 . 87 102 . . 342 . . 176 9 . . . . . . 18 . . . . . . . 18 30 Siege Activations . | . . . . . . . . . . . . . . . . . . . . . . . . . . . . Martial Activations . | . . . . . . . . . . . . . . . . . . . . . . . . . . . . Shielding Activations . | . . . . . . . . . . . . . . . . . . . . . . . . . . . . Robots Disrupted . | . . . . . . . . . . . . . . . . . . . . . . . . . . . . Combat Hostiles . | . . . . . . . . . . . . . . . . . . . . . . . . . . . . Robots Corrupted 4 | . . . . . . . . . . . . . . . . . . . . . . 2 . 1 1 . . Combat Hostiles 4 | . . . . . . . . . . . . . . . . . . . . . . 2 . 1 1 . . Parts Fried 6 | . . . . . . . . . . . . . . . . . . . . . . 2 . 4 . . . Impact Corruptions 10 | . . . . . . . . . . . . . . . . . . . . . . 6 . 2 1 1 . Robots Melted . | . . . . . . . . . . . . . . . . . . . . . . . . . . . . Combat Hostiles . | . . . . . . . . . . . . . . . . . . . . . . . . . . . . Parts Melted 1 | . 1 . . . . . . . . . . . . . . . . . . . . . . . . . . Heat Transferred 50 | . 50 . . . . . . . . . . . . . . . . . . . . . . . . . . Parts Sabotaged . | . . . . . . . . . . . . . . . . . . . . . . . . . . . . Parts Stolen . | . . . . . . . . . . . . . . . . . . . . . . . . . . . . Parts Stripped . | . . . . . . . . . . . . . . . . . . . . . . . . . . . . Power Chain Reactions 1 | . 1 . . . . . . . . . . . . . . . . . . . . . . . . . . Alert | -11 -10 -10 -9 -9 -9 -8 -8 -7 -7 -7 -7 -7 -7 -6 -6 -5 -5 -5 -5 -4 -4 -4 -4 -4 -3 -3 -2 ------- Run | Yrd Mat Min Mat Min Exi Min Mat Fac Was Fac Low Low Dat Pro Fac Fac Upp Upp Zhi Pro Fac Upp Upp War Pro Res Res Maximum Alert Level 1 | . . . . . . . . . . . . . . . . . . . . . . . . . . 1 . Low Security (%) 96 | 100 100 100 100 100 . 100 100 100 100 100 . . . . 100 100 . . . . 100 . . . . 47 100 Level 1 3 | . . . . . . . . . . . . . . . . . . . . . . . . . . 52 . Level 2 . | . . . . . . . . . . . . . . . . . . . . . . . . . . . . Level 3 . | . . . . . . . . . . . . . . . . . . . . . . . . . . . . Level 4 . | . . . . . . . . . . . . . . . . . . . . . . . . . . . . Level 5 . | . . . . . . . . . . . . . . . . . . . . . . . . . . . . High Security . | . . . . . . . . . . . . . . . . . . . . . . . . . . . . Max Security . | . . . . . . . . . . . . . . . . . . . . . . . . . . . . Peak Influence 300 | . 50 20 50 174 . 5 75 21 3 33 . . . . 17 15 . . . . 96 . . . . 300 186 Initial 300 | . . . . 9 . . . 14 3 . . . . . . . . . . . . . . . . 300 108 Average 34 | . 8 1 10 72 . . 17 5 . 5 . . . . 1 1 . . . . 11 . . . . 201 112 Influence Increases 2636 | . 117 20 147 385 . 16 304 38 . 123 60 . . 5 40 27 150 30 . . 205 210 . 5 5 447 302 Destroy 0b10 Robot/C 860 | . 60 20 60 280 . . 160 . . 20 . . . . . . 140 . . . 40 80 . . . . . Destroy 0b10 Robot/NC 155 | . 20 . 35 5 . 15 5 5 . 5 . . . 5 10 10 . . . . 20 . . 5 5 . 10 Destroy Leader 176 | . 14 . 28 50 . . 40 . . 12 . . . . . . 10 . . . 12 10 . . . . . Allied During Kill 10 | . . . . . . . . . . . . . . . . . . . . . . . . . . . 10 Successful Hack 234 | . 20 . 24 . . . 35 14 . 54 . . . . 8 . . . . . 55 . . . . 18 6 Disable Machine 60 | . . . . . . . . 15 . . . . . . 15 15 . . . . 15 . . . . . . Destroy Structure 361 | . 3 . . 35 . 1 4 4 . 17 . . . . 7 2 . . . . 18 . . . . 24 246 Advance Influence 300 | . . . . . . . . . . . . . . . . . . . . . . . . . . 300 . Partial Spotted 15 | . . . . . . . . . . . . . . . . . . . . . . . . . . 15 . Lose Combat Pursuer 465 | . . . . 15 . . 60 . . 15 60 . . . . . . 30 . . 45 120 . . . 90 30 Influence Decreases 2466 | . 115 22 121 324 87 16 272 59 11 93 86 4 . 5 38 29 128 52 . . 115 180 120 5 5 254 325 Entered New Map 295 | . . 2 . 17 87 . . 18 8 . 12 2 . . . 2 . 5 . . . 34 23 . . . 85 Time Decay 1987 | . 115 20 121 297 . 16 252 41 3 89 74 2 . 5 38 27 98 47 . . 115 126 97 5 5 254 140 Lost Part 164 | . . . . 10 . . 20 . . 4 . . . . . . 30 . . . . 20 . . . . 80 Lost Ally 20 | . . . . . . . . . . . . . . . . . . . . . . . . . . . 20 Squads Dispatched 13 | . . . 1 . . . 1 . . 4 . . . . 1 1 . . . . 2 . . . . 3 . Investigation 2 | . . . . . . . 1 . . . . . . . 1 . . . . . . . . . . . . Extermination 4 | . . . . . . . . . . 1 . . . . . . . . . . 1 . . . . 2 . Reinforcement 6 | . . . 1 . . . . . . 2 . . . . . 1 . . . . 1 . . . . 1 . Assault . | . . . . . . . . . . . . . . . . . . . . . . . . . . . . Garrison 1 | . . . . . . . . . . 1 . . . . . . . . . . . . . . . . . Intercept . | . . . . . . . . . . . . . . . . . . . . . . . . . . . . Searches Triggered . | . . . . . . . . . . . . . . . . . . . . . . . . . . . . Construction Impeded . | . . . . . . . . . . . . . . . . . . . . . . . . . . . . Haulers Reinforced . | . . . . . . . . . . . . . . . . . . . . . . . . . . . . Active Scanning Responses . | . . . . . . . . . . . . . . . . . . . . . . . . . . . . Cargo Convoy Interrupts . | . . . . . . . . . . . . . . . . . . . . . . . . . . . . Stealth | -11 -10 -10 -9 -9 -9 -8 -8 -7 -7 -7 -7 -7 -7 -6 -6 -5 -5 -5 -5 -4 -4 -4 -4 -4 -3 -3 -2 --------- Run | Yrd Mat Min Mat Min Exi Min Mat Fac Was Fac Low Low Dat Pro Fac Fac Upp Upp Zhi Pro Fac Upp Upp War Pro Res Res Distress Signals 6 | . . . . . . . . . . . . . . . . . . . . . 1 . . . . 2 3 Communications Jammed . | . . . . . . . . . . . . . . . . . . . . . . . . . . . . Distress Signals . | . . . . . . . . . . . . . . . . . . . . . . . . . . . . Times Spotted 143 | . 7 9 9 15 . . 11 . 6 12 2 . . . 1 2 10 5 . . 17 11 1 3 1 8 13 Peak Tracking Total 7 | . 2 2 3 4 . . 4 1 6 4 4 . . . 1 1 5 3 . . 4 4 1 1 1 7 7 Tactical Retreats 18 | . . 2 . 1 . . 2 . . 2 1 . . . . . . 2 . . 2 2 . . . 3 1 Traps | -11 -10 -10 -9 -9 -9 -8 -8 -7 -7 -7 -7 -7 -7 -6 -6 -5 -5 -5 -5 -4 -4 -4 -4 -4 -3 -3 -2 ------- Run | Yrd Mat Min Mat Min Exi Min Mat Fac Was Fac Low Low Dat Pro Fac Fac Upp Upp Zhi Pro Fac Upp Upp War Pro Res Res Traps Triggered 3 | . . . . . . . . 1 . 1 . . . . . . . . . . . . . . . . 1 Indirectly . | . . . . . . . . . . . . . . . . . . . . . . . . . . . . Trap Hack Attempts . | . . . . . . . . . . . . . . . . . . . . . . . . . . . . Triggered . | . . . . . . . . . . . . . . . . . . . . . . . . . . . . Disarmed . | . . . . . . . . . . . . . . . . . . . . . . . . . . . . Reprogrammed . | . . . . . . . . . . . . . . . . . . . . . . . . . . . . Reused 1 | . . . . . . . . . . . . . . . . . 1 . . . . . . . . . . Traps Extracted . | . . . . . . . . . . . . . . . . . . . . . . . . . . . . Installed 1 | . . . . . . . . . . . . . . . . . 1 . . . . . . . . . . Triggered 1 | . . . . . . . . . . . . . . . . . 1 . . . . . . . . . . Most Traps Carried 1 | . . . . . . . . . . . . . . 1 1 1 1 . . . . . . . . . . Machines | -11 -10 -10 -9 -9 -9 -8 -8 -7 -7 -7 -7 -7 -7 -6 -6 -5 -5 -5 -5 -4 -4 -4 -4 -4 -3 -3 -2 ---------- Run | Yrd Mat Min Mat Min Exi Min Mat Fac Was Fac Low Low Dat Pro Fac Fac Upp Upp Zhi Pro Fac Upp Upp War Pro Res Res Machines Disabled 5 | . . . . . . . . 1 . . . . . . 1 1 . 1 . . 1 . . . . . . Max in Single Turn 1 | . . . . . . . . 1 . . . . . . 1 1 . 1 . . 1 . . . . . . Garrison Access 1 | . . . . . . . . . . . . . . . 1 . . . . . . . . . . . . Machines Repaired . | . . . . . . . . . . . . . . . . . . . . . . . . . . . . Machines Dismantled . | . . . . . . . . . . . . . . . . . . . . . . . . . . . . Machines Sabotaged . | . . . . . . . . . . . . . . . . . . . . . . . . . . . . Overloaded Fab Kills . | . . . . . . . . . . . . . . . . . . . . . . . . . . . . Hacking | -11 -10 -10 -9 -9 -9 -8 -8 -7 -7 -7 -7 -7 -7 -6 -6 -5 -5 -5 -5 -4 -4 -4 -4 -4 -3 -3 -2 --------- Run | Yrd Mat Min Mat Min Exi Min Mat Fac Was Fac Low Low Dat Pro Fac Fac Upp Upp Zhi Pro Fac Upp Upp War Pro Res Res Machines Accessed 59 | . 4 . 3 . 2 . 5 2 . 6 . 2 3 . 8 2 1 . 4 . 8 . 2 2 . 2 3 Terminals 28 | . 4 . 3 . . . 3 1 . 1 . 1 . . 5 . . . . . 6 . 1 . . 1 2 Fabricators 6 | . . . . . . . . . . 3 . . . . 2 . . . . . 1 . . . . . . Repair Stations . | . . . . . . . . . . . . . . . . . . . . . . . . . . . . Recycling Units . | . . . . . . . . . . . . . . . . . . . . . . . . . . . . Scanalyzers 6 | . . . . . . . 1 . . 1 . . . . . 2 . . . . 1 . . . . 1 . Garrison Access 5 | . . . . . . . 1 1 . 1 . . . . 1 . . . . . . . . . . . 1 Total Hacks 207 | . 21 . 11 . 5 . 19 6 . 16 . 2 25 . 23 5 1 . 16 . 34 . 2 2 . 7 12 Successful 126 | . 14 . 6 . 5 . 10 1 . 8 . 2 25 . 9 1 1 . 16 . 20 . 2 2 . 1 3 Failed 78 | . 6 . 5 . . . 9 5 . 7 . . . . 14 3 . . . . 14 . . . . 6 9 Catastrophic 12 | . 1 . 1 . . . 2 1 . 2 . . . . 2 . . . . . 1 . . . . 1 1 Database Lockouts 3 | . 1 . . . . . . . . 1 . . . . . 1 . . . . . . . . . . . Manual 90 | . 14 . 9 . 1 . 11 4 . 8 . . . . 12 . . 1 . . 20 . . 2 . 2 6 Terminals 108 | . 21 . 11 . . . 13 4 . 3 . 1 . . 18 . . . . . 25 . 1 . . 2 9 Fabricators 17 | . . . . . . . . . . 8 . . . . 4 . . . . . 5 . . . . . . Repair Stations . | . . . . . . . . . . . . . . . . . . . . . . . . . . . . Recycling Units . | . . . . . . . . . . . . . . . . . . . . . . . . . . . . Scanalyzers 21 | . . . . . . . 4 . . 3 . . . . . 5 . . . . 4 . . . . 5 . Garrison Access 10 | . . . . . . . 2 2 . 2 . . . . 1 . . . . . . . . . . . 3 Terminal Hacks 93 | . 11 . 6 . 5 . 3 . . . . 2 25 . 4 . 1 . 16 . 13 . 2 2 . . 3 Record 14 | . . . . . 4 . . . . . . 1 4 . . . . . 4 . . . 1 . . . . Part Schematic 16 | . . . . . . . 1 . . . . . 11 . . . . . 4 . . . . . . . . Robot Schematic 7 | . . . . . . . . . . . . . 7 . . . . . . . . . . . . . . Robot Analysis 8 | . 3 . . . . . 1 . . . . . . . . . . . 4 . . . . . . . . Prototype ID Bank 9 | . 1 . 1 . . . . . . . . . 3 . . . . . 4 . . . . . . . . Open Door 5 | . . . . . . . . . . . . 1 . . . . 1 . . . . . 1 2 . . . Level Access Points 1 | . . . . . . . . . . . . . . . . . . . . . . . . . . . 1 Branch Access Points 3 | . 1 . . . . . . . . . . . . . . . . . . . 1 . . . . . 1 Terminal Index 3 | . . . 1 . . . . . . . . . . . 1 . . . . . 1 . . . . . . Repair Station Index 1 | . . . . . . . . . . . . . . . . . . . . . 1 . . . . . . Alert Level 3 | . . . . . . . 1 . . . . . . . . . . . . . 1 . . . . . 1 Locate Traps 3 | . . . 1 . . . . . . . . . . . 1 . . . . . 1 . . . . . . Dispatch Records 2 | . . . . . . . . . . . . . . . . . . . . . 2 . . . . . . Patrol Status 5 | . 2 . 1 . . . . . . . . . . . . . . . . . 2 . . . . . . Transport Status 2 | . 1 . 1 . . . . . . . . . . . . . . . . . . . . . . . . Recall Investigation 1 | . . . . . . . . . . . . . . . 1 . . . . . . . . . . . . Recall Extermination 1 | . . . . . . . . . . . . . . . . . . . . . 1 . . . . . . Hauler Manifests 2 | . 1 . 1 . . . . . . . . . . . . . . . . . . . . . . . . Registered Components 1 | . 1 . . . . . . . . . . . . . . . . . . . . . . . . . . Zone Layout 5 | . 1 . . . . . . . . . . . . . 1 . . . . . 3 . . . . . . Proto ID Catalog 1 | . . . . . 1 . . . . . . . . . . . . . . . . . . . . . . Fabricator Hacks 5 | . . . . . . . . . . 2 . . . . 2 . . . . . 1 . . . . . . Network Status 1 | . . . . . . . . . . 1 . . . . . . . . . . . . . . . . . Load Schematic 2 | . . . . . . . . . . . . . . . 1 . . . . . 1 . . . . . . Build 2 | . . . . . . . . . . 1 . . . . 1 . . . . . . . . . . . . Repair Station Hacks . | . . . . . . . . . . . . . . . . . . . . . . . . . . . . Recycling Unit Hacks . | . . . . . . . . . . . . . . . . . . . . . . . . . . . . Scanalyzer 11 | . . . . . . . 4 . . 2 . . . . . 1 . . . . 3 . . . . 1 . Retrieve Study 11 | . . . . . . . 4 . . 2 . . . . . 1 . . . . 3 . . . . 1 . Garrison Access Hacks 1 | . . . . . . . . . . . . . . . 1 . . . . . . . . . . . . Seal Access 1 | . . . . . . . . . . . . . . . 1 . . . . . . . . . . . . Unauthorized Hacks 16 | . 3 . . . . . 3 1 . 4 . . . . 2 . . . . . 3 . . . . . . Terminals 13 | . 3 . . . . . 3 1 . 1 . . . . 2 . . . . . 3 . . . . . . Assimilate 3 | . 1 . . . . . . 1 . . . . . . . . . . . . 1 . . . . . . Botnet 8 | . 2 . . . . . 1 . . 1 . . . . 2 . . . . . 2 . . . . . . Disrupt 1 | . . . . . . . 1 . . . . . . . . . . . . . . . . . . . . Operators 1 | . . . . . . . 1 . . . . . . . . . . . . . . . . . . . . Fabricators 3 | . . . . . . . . . . 3 . . . . . . . . . . . . . . . . . Report 1 | . . . . . . . . . . 1 . . . . . . . . . . . . . . . . . Liberate 1 | . . . . . . . . . . 1 . . . . . . . . . . . . . . . . . Fabnet 1 | . . . . . . . . . . 1 . . . . . . . . . . . . . . . . . Repair Stations . | . . . . . . . . . . . . . . . . . . . . . . . . . . . . Recycling Units . | . . . . . . . . . . . . . . . . . . . . . . . . . . . . Scanalyzers . | . . . . . . . . . . . . . . . . . . . . . . . . . . . . Garrison Access . | . . . . . . . . . . . . . . . . . . . . . . . . . . . . Data Cores Recovered 1 | . 1 . . . . . . . . . . . . . . . . . . . . . . . . . . Used 1 | . 1 . . . . . . . . . . . . . . . . . . . . . . . . . . Hacking Detections 38 | . 4 . 3 . . . 4 2 . 3 . . . . 7 2 . . . . 8 . . . . 2 3 Full Trace Events 2 | . . . . . . . 1 . . . . . . . 1 . . . . . . . . . . . . Feedback Events . | . . . . . . . . . . . . . . . . . . . . . . . . . . . . Feedback Blocked . | . . . . . . . . . . . . . . . . . . . . . . . . . . . . Robot Schematics Acquired 7 | . . . . . . . . . . . . . 7 . . . . . . . . . . . . . . Robots Built . | . . . . . . . . . . . . . . . . . . . . . . . . . . . . Authchips . | . . . . . . . . . . . . . . . . . . . . . . . . . . . . Time . | . . . . . . . . . . . . . . . . . . . . . . . . . . . . Total Robot Build Rating . | . . . . . . . . . . . . . . . . . . . . . . . . . . . . Part Schematics Acquired 16 | . . . . . . . 1 . . . . . 11 . . . . . 4 . . . . . . . . Parts Built 3 | . . . . . . . . . . 2 . . . . 1 . . . . . . . . . . . . Authchips . | . . . . . . . . . . . . . . . . . . . . . . . . . . . . Time 199 | . . . . . . . . . . 47 . . . . 152 . . . . . . . . . . . . Total Part Build Rating 15 | . . . . . . . . . . 10 . . . . 5 . . . . . . . . . . . . Part Studies Acquired 11 | . . . . . . . 4 . . 2 . . . . . 1 . . . . 3 . . . . 1 . Parts Repaired . | . . . . . . . . . . . . . . . . . . . . . . . . . . . . Time . | . . . . . . . . . . . . . . . . . . . . . . . . . . . . Parts Recycled . | . . . . . . . . . . . . . . . . . . . . . . . . . . . . Recycled Matter . | . . . . . . . . . . . . . . . . . . . . . . . . . . . . Retrieved Matter . | . . . . . . . . . . . . . . . . . . . . . . . . . . . . Retrieved Components . | . . . . . . . . . . . . . . . . . . . . . . . . . . . . Parts Scanalyzed . | . . . . . . . . . . . . . . . . . . . . . . . . . . . . Part Schematics Acquired . | . . . . . . . . . . . . . . . . . . . . . . . . . . . . Parts Damaged . | . . . . . . . . . . . . . . . . . . . . . . . . . . . . Bothacking | -11 -10 -10 -9 -9 -9 -8 -8 -7 -7 -7 -7 -7 -7 -6 -6 -5 -5 -5 -5 -4 -4 -4 -4 -4 -3 -3 -2 ------------ Run | Yrd Mat Min Mat Min Exi Min Mat Fac Was Fac Low Low Dat Pro Fac Fac Upp Upp Zhi Pro Fac Upp Upp War Pro Res Res Used RIF Installer . | . . . . . . . . . . . . . . . . . . . . . . . . . . . . Robots Hacked 5 | . . . . . . . . . . . . . . . . . . . . . . . . . . . 5 Non-combat 1 | . . . . . . . . . . . . . . . . . . . . . . . . . . . 1 Combat 4 | . . . . . . . . . . . . . . . . . . . . . . . . . . . 4 Robot Hacks Applied 5 | . . . . . . . . . . . . . . . . . . . . . . . . . . . 5 parse_system 5 | . . . . . . . . . . . . . . . . . . . . . . . . . . . 5 Manual 1 | . . . . . . . . . . . . . . . . . . . . . . . . . . . 1 Relay Couplers Released . | . . . . . . . . . . . . . . . . . . . . . . . . . . . . Fabnet Peak Effective % 3 | . . . . . . . . . . . . . . 3 3 1 1 1 1 . . . . . . . . Robots Rewired . | . . . . . . . . . . . . . . . . . . . . . . . . . . . . Allies Hacked . | . . . . . . . . . . . . . . . . . . . . . . . . . . . . Hacks Repelled . | . . . . . . . . . . . . . . . . . . . . . . . . . . . . Allies | -11 -10 -10 -9 -9 -9 -8 -8 -7 -7 -7 -7 -7 -7 -6 -6 -5 -5 -5 -5 -4 -4 -4 -4 -4 -3 -3 -2 -------- Run | Yrd Mat Min Mat Min Exi Min Mat Fac Was Fac Low Low Dat Pro Fac Fac Upp Upp Zhi Pro Fac Upp Upp War Pro Res Res Total Allies 7 | . 1 . . . . . . . . . . . . . . . . . . . 1 . . . . . 5 Largest Group 5 | . 1 1 . . . . . . . . . . . . . . . . . . 1 . . . . . 5 Highest-Rated Group 748 | . 10 10 . . . . . . . . . . . . . . . . . . 26 . . . . . 748 Highest-Rated Ally 369 | . 10 10 . . . . . . . . . . . . . . . . . . 26 . . . . . 369 Total Orders . | . . . . . . . . . . . . . . . . . . . . . . . . . . . . Ally Attacks 119 | . . . . . . . . . . . . . . . . . . . . . . . . . . . 119 Total Damage 5875 | . . . . . . . . . . . . . . . . . . . . . . . . . . . 5875 Kills 6 | . . . . . . . . . . . . . . . . . . . . . . . . . . . 6 Allies Corrupted . | . . . . . . . . . . . . . . . . . . . . . . . . . . . . Allies Melted 1 | . . . . . . . . . . . . . . . . . . . . . . . . . . . 1 Intel | -11 -10 -10 -9 -9 -9 -8 -8 -7 -7 -7 -7 -7 -7 -6 -6 -5 -5 -5 -5 -4 -4 -4 -4 -4 -3 -3 -2 ------- Run | Yrd Mat Min Mat Min Exi Min Mat Fac Was Fac Low Low Dat Pro Fac Fac Upp Upp Zhi Pro Fac Upp Upp War Pro Res Res Active Infowar (turns) 10598 | . . . 595 906 629 462 948 150 111 529 422 399 45 216 393 300 401 745 107 152 827 267 224 709 225 550 286 Optics 7058 | . . . . . . . . 150 111 529 422 399 45 216 393 300 401 745 107 152 827 267 224 709 225 550 286 Sensors 5541 | . . . . . . . . . . . 422 399 45 216 393 300 401 736 . . 812 267 224 482 225 333 286 Terrain 8914 | . . . 595 906 629 462 948 150 111 382 . . . . 336 300 401 458 . 152 827 267 224 709 225 550 282 Traps 3263 | . . . . . . . . . . . . . . . . 272 401 233 . 152 827 267 224 111 . 542 234 Machine Analysis 5916 | . . . . . . . . . . . 70 399 45 216 393 300 401 745 107 152 827 267 224 709 225 550 286 Cloaking 1411 | . . . . . . . . . . . . . . . . 1 . . . . . . 1 596 225 549 39 Robot Analysis Total 8 | . 3 . . . . . 1 . . . . . . . . . . . 4 . . . . . . . . Derelict Logs Recovered 13 | . . . . 1 . . . . . . 1 2 . 1 . . 3 1 . 1 . 1 2 . . . . Drone Launches . | . . . . . . . . . . . . . . . . . . . . . . . . . . . . Drone Recoveries . | . . . . . . . . . . . . . . . . . . . . . . . . . . . . Exploration | -11 -10 -10 -9 -9 -9 -8 -8 -7 -7 -7 -7 -7 -7 -6 -6 -5 -5 -5 -5 -4 -4 -4 -4 -4 -3 -3 -2 ------------- Run | Yrd Mat Min Mat Min Exi Min Mat Fac Was Fac Low Low Dat Pro Fac Fac Upp Upp Zhi Pro Fac Upp Upp War Pro Res Res Turns Passed 11776 | 91 536 551 595 906 629 462 948 150 111 529 422 399 45 216 393 300 401 745 107 152 827 267 224 709 225 550 286 Spaces Moved 11830 | 52 279 295 266 459 391 164 344 193 157 673 502 612 82 363 442 269 479 753 136 216 802 441 517 1236 423 704 580 Core 224 | 4 . . . . . . . . . 5 213 . . . . . . . . . . . . 2 . . . Treads 2225 | 48 279 295 266 459 391 164 323 . . . . . . . . . . . . . . . . . . . . Legs . | . . . . . . . . . . . . . . . . . . . . . . . . . . . . Wheels . | . . . . . . . . . . . . . . . . . . . . . . . . . . . . Hover 3011 | . . . . . . . 21 193 157 668 164 . . . . 222 479 753 136 216 2 . . . . . . Flight 6370 | . . . . . . . . . . . 125 612 82 363 442 47 . . . . 800 441 517 1234 423 704 580 Fastest Speed 19 | 50 160 160 160 160 160 160 52 52 52 52 55 55 55 55 42 42 55 61 61 63 19 19 34 30 30 28 28 Average Speed 67 | 151 160 160 160 160 160 160 152 52 52 54 75 55 55 55 50 60 56 73 61 65 31 28 34 31 30 28 28 Slowest Speed 300 | 160 160 160 160 160 160 160 160 52 52 250 100 55 55 55 55 80 63 80 63 66 66 195 34 300 30 30 98 Overloaded Moves 48 | . . . . . . . . . . . . . . . . . . . . . 22 26 . . . . . Propulsion Burnouts . | . . . . . . . . . . . . . . . . . . . . . . . . . . . . Robots Hopped 15 | . . . . . . . . . . . . . . . . . . . . . 3 . 1 . . 9 2 Potential Cave-ins 1 | . . . . . . . . . . . . . . . . . . . . . . . . . . . 1 Cave-ins Triggered . | . . . . . . . . . . . . . . . . . . . . . . . . . . . . Teleports 1 | . . . . . . . . . . . . . . . . . . . . . 1 . . . . . . Exploration Rate (%) 49 | 4 60 66 30 95 66 28 27 7 89 29 77 78 74 68 16 6 64 71 60 46 22 53 66 95 59 23 15 Regions Visited 27 Branch Regions 16 Pre-discovered Areas 9 | . . . . . 1 . . . . . . . 1 . . . 2 . 3 . . . 2 . . . . Known Exits Taken 17 | . 1 . . . . . . . . . 1 1 1 1 1 1 1 1 1 1 1 1 1 1 1 1 . Unknown Exits Taken 8 | 1 . 1 1 1 1 1 1 . . 1 . . . . . . . . . . . . . . . . . Scrap Searched 22 | . . 1 . 2 . . . . . . 3 2 . 1 . . 1 3 . 2 . 1 4 . 2 . . Spaces Dug 71 | . . . . . . 1 4 4 . 16 2 3 . 1 7 1 1 . . 1 9 3 1 . 1 12 4 Terrain Destroyed 216 | . 3 . . 54 . 1 4 4 . 16 2 3 . 1 7 1 1 . . 1 9 3 1 . 1 12 92 Melee 71 | . . . . . . 1 4 4 . 16 2 3 . 1 7 1 1 . . 1 9 3 1 . 1 12 4 Projectile 4 | . . . . . . . . . . . . . . . . . . . . . . . . . . . 4 AOE 141 | . 3 . . 54 . . . . . . . . . . . . . . . . . . . . . . 84 Terrain Rammed . | . . . . . . . . . . . . . . . . . . . . . . . . . . . . Walls Destroyed . | . . . . . . . . . . . . . . . . . . . . . . . . . . . . Machines Disabled . | . . . . . . . . . . . . . . . . . . . . . . . . . . . . Actions | -11 -10 -10 -9 -9 -9 -8 -8 -7 -7 -7 -7 -7 -7 -6 -6 -5 -5 -5 -5 -4 -4 -4 -4 -4 -3 -3 -2 --------- Run | Yrd Mat Min Mat Min Exi Min Mat Fac Was Fac Low Low Dat Pro Fac Fac Upp Upp Zhi Pro Fac Upp Upp War Pro Res Res Total 15146 | 61 333 338 386 567 396 356 726 236 185 802 540 669 81 370 593 398 569 942 157 225 1340 559 566 1560 515 1021 655 Wait 2694 | 2 7 16 68 45 . 188 337 22 29 96 21 55 . . 135 106 53 185 12 1 491 104 34 267 90 303 27 Move 11778 | 51 278 294 265 458 390 163 343 193 156 672 501 611 81 362 441 268 478 752 135 215 795 440 514 1235 422 688 577 Hop 11 | . . . . . . . . . . . . . . . . . . . . . 3 . 1 . . 6 1 Pick Up 79 | 2 12 4 8 5 2 . 2 4 . 4 . . . 1 1 5 3 1 1 1 6 . 8 9 . . . Fast Attach 71 | 6 2 . . 3 . . 5 1 . . 5 . . . 3 4 . 2 5 1 8 . . 15 . 6 5 Attach 34 | . . 1 2 . 2 . 4 3 . 1 3 . . . 2 2 2 . 1 1 1 2 2 2 . . 3 Detach 17 | . 1 . . . . . . 3 . . 3 . . . 1 . . . 2 1 1 . 2 2 . 1 . Swap 35 | . 5 . 4 7 . . 1 1 . 2 1 . . . . 1 2 . . 1 4 . . 1 . . 5 Drop 101 | . 8 3 8 6 2 . 4 3 . 4 4 . . 1 . 7 3 1 1 3 9 . 4 25 . 3 2 Fire 134 | . 20 20 27 38 . . 8 . . . . . . . . . . . . . . . . . . . 21 Melee 180 | . . . . . . 5 22 6 . 23 2 3 . 6 10 5 27 1 . 1 22 13 1 4 3 14 12 Ram . | . . . . . . . . . . . . . . . . . . . . . . . . . . . . Kick . | . . . . . . . . . . . . . . . . . . . . . . . . . . . . Crush 9 | . . . 4 5 . . . . . . . . . . . . . . . . . . . . . . . Escape Stasis 2 | . . . . . . . . . . . . . . . . . . . . . . . . . . . 2 Rewire . | . . . . . . . . . . . . . . . . . . . . . . . . . . . . Trap 1 | . . . . . . . . . . . . . . . . . 1 . . . . . . . . . . Miscellaneous . | . . . . . . . . . . . . . . . . . . . . . . . . . . . . Route ------- -11/Scrapyard -10/Materials (discovered 3 exits: *Mat x2 / *Min) -10/Mines -9/Materials -9/Mines (discovered 2 exits: *Mat / *Exi) -9/Exiles -8/Mines -8/Materials -7/Factory -7/Waste -7/Factory -7/Lower Caves -7/Lower Caves -7/Data Miner -6/Proximity Caves -6/Factory -5/Factory -5/Upper Caves -5/Upper Caves (discovered 2 exits: *Fac / *Zhi) -5/Zhirov -4/Proximity Caves -4/Factory (discovered 6 exits: *Res / *Upp x2 / Ext x2 / Arm) -4/Upper Caves -4/Upper Caves -4/Warlord -3/Proximity Caves -3/Research (discovered 2 exits: *Res x2) -2/Research (discovered 5 exits: Acc x3 / *Qua x2) History --------- Turn | Location | Event 7 | -11/Scrapyard | Discovered new exit (range 15) 92 | -11/Scrapyard | Entered Materials 201 | -10/Materials | Discovered new exit (range 7) 320 | -10/Materials | Build established: Mutant 434 | -10/Materials | Central database locked down 434 | -10/Materials | Discovered new exit (range 17) 450 | -10/Materials | Identified exit to Mines 628 | -10/Materials | Entered Mines 628 | -10/Mines | Accompanied by 1 ally 786 | -10/Mines | Assembled infested the area 791 | -10/Mines | Assisted by a Guerilla fighting off Assembled 1154 | -10/Mines | Discovered new exit (range 12) 1179 | -10/Mines | Entered Materials 1179 | -9/Materials | Evolved 2 slots: Utility x2 1696 | -9/Materials | Discovered new exit (range 12) 1774 | -9/Materials | Entered Mines 1982 | -9/Mines | Build established: Scavenger-Mutant 2568 | -9/Mines | Discovered new exit (range 16) 2576 | -9/Mines | Received a Rocket Launcher from a helpful Derelict 2584 | -9/Mines | Learned Materials terminal intel 2590 | -9/Mines | Found DCF Scrap (15 items) 2661 | -9/Mines | Discovered new exit (range 13) 2673 | -9/Mines | Deemed a non-threat by the Exiles lab entrance 2680 | -9/Mines | Entered Exiles 2719 | -9/Exiles | Met 8R-AWN 2746 | -9/Exiles | Met EX-HEX 2797 | -9/Exiles | Met EX-BIN 2815 | -9/Exiles | Aligned with FarCom system 2816 | -9/Exiles | Given EX-Vault access code 2853 | -9/Exiles | Opened EX-Vault 2896 | -9/Exiles | Warned to stay clear of 0b10 Research branches 2941 | -9/Exiles | Met EX-DEC 2971 | -9/Exiles | Learned location of Zion (-6) 3164 | -9/Exiles | Found Cloak of Protection 3297 | -9/Exiles | Discovered new exit (range 10) 3309 | -9/Exiles | Left Exiles lab with Cloak of Protection 3309 | -9/Exiles | Entered Mines 3323 | -8/Mines | Discovered new exit (range 10) 3602 | -8/Mines | Build established: Scavenger-Assassin 3771 | -8/Mines | Entered Materials 3771 | -8/Materials | Evolved 2 slots: Propulsion x1, Utility x1 3772 | -8/Materials | Loaded intel: 12 terminal locations 4139 | -8/Materials | Discovered new exit (range 15) 4719 | -8/Materials | Entered Factory 4719 | -7/Factory | Evolved 2 slots: Utility x2 4836 | -7/Factory | Discovered new exit (range 14) 4869 | -7/Factory | Sucked down chute 4869 | -7/Factory | Entered Waste 4874 | -7/Waste | Spotted C-40 Crusher 4881 | -7/Waste | Spotted C-40 Crusher 4882 | -7/Waste | Spotted C-40 Crusher 4884 | -7/Waste | EMP discharged 4886 | -7/Waste | Spotted C-40 Crusher 4950 | -7/Waste | Spotted C-40 Crusher 4953 | -7/Waste | Spotted C-40 Crusher 4974 | -7/Waste | Discovered new exit (range 12) 4980 | -7/Waste | Entered Factory 4992 | -7/Factory | Build established: Scavenger-Scout 5096 | -7/Factory | Central database locked down 5163 | -7/Factory | Fabricated Adv. Signal Interpreter (x2) 5359 | -7/Factory | Assembled infested ambush trap array 5462 | -7/Factory | Garrison activated, responded to threat 5476 | -7/Factory | Discovered new exit (range 18) 5509 | -7/Factory | Entered Lower Caves 5530 | -7/Lower Caves | Lost 4 parts (3n1u) 5572 | -7/Lower Caves | Encountered a Warlord checkpoint 5664 | -7/Lower Caves | Entered a destroyed Warlord outpost 5847 | -7/Lower Caves | Found DCF Scrap (16 items) 5927 | -7/Lower Caves | Discovered new exit (range 8) 5930 | -7/Lower Caves | Identified exit to Lower Caves 5931 | -7/Lower Caves | Entered another Lower Caves area 5995 | -7/Lower Caves | Learned Factory garrison access intel 6000 | -7/Lower Caves | Learned Factory terminal intel 6148 | -7/Lower Caves | Build established: Derelict-Scout 6297 | -7/Lower Caves | Discovered new exit (range 11) 6325 | -7/Lower Caves | Identified exit to Data Miner 6330 | -7/Lower Caves | Entered Data Miner 6330 | -7/Data Miner | Discovered new exit (range 6) 6339 | -7/Data Miner | Met Data Miner 6354 | -7/Data Miner | Learned location of Section 7 (-2) 6354 | -7/Data Miner | Acquired the access code to Warlord's prototype stash 6361 | -7/Data Miner | Received God Mode back door access code from Data Miner 6375 | -7/Data Miner | Identified exit to Proximity Caves 6375 | -7/Data Miner | Entered Proximity Caves 6454 | -6/Proximity Caves | Learned Factory stockpile data 6575 | -6/Proximity Caves | Discovered new exit (range 11) 6591 | -6/Proximity Caves | Identified exit to Factory 6591 | -6/Proximity Caves | Entered Factory 6591 | -6/Factory | Evolved 2 slots: Utility x2 6593 | -6/Factory | Loaded intel: 25 terminal locations 6594 | -6/Factory | Loaded intel: 4 garrison access locations 6886 | -6/Factory | Fabricated Cld. Cesium-ion Thruster (x1) 6920 | -6/Factory | Discovered new exit (range 18) 6984 | -6/Factory | Identified exit to Factory 6984 | -6/Factory | Entered another Factory area 6984 | -5/Factory | Evolved 2 slots: Utility x2 7067 | -5/Factory | Discovered new exit (range 15) 7077 | -5/Factory | Identified exit to Upper Caves 7198 | -5/Factory | Central database locked down 7284 | -5/Factory | Entered Upper Caves 7309 | -5/Upper Caves | Learned Factory security intel 7344 | -5/Upper Caves | Spotted B-75 Beast 7643 | -5/Upper Caves | Lost 3 parts (1n2u) 7650 | -5/Upper Caves | Learned location of Warlord (-4) 7656 | -5/Upper Caves | Discovered new exit (range 12) 7683 | -5/Upper Caves | Identified exit to Upper Caves 7685 | -5/Upper Caves | Entered another Upper Caves area 7750 | -5/Upper Caves | Discovered new exit (range 8) 7754 | -5/Upper Caves | Identified exit to Factory 7917 | -5/Upper Caves | Attracted the attention of an 0b10 checkpoint 7947 | -5/Upper Caves | Learned Factory garrison access intel 8218 | -5/Upper Caves | Discovered new exit (range 9) 8223 | -5/Upper Caves | Identified exit to Zhirov 8253 | -5/Upper Caves | Acquired the password to a Derelict Tinkerer's latest research 8378 | -5/Upper Caves | Caught by Unaware searching for contraband prototypes 8430 | -5/Upper Caves | Entered Zhirov 8431 | -5/Zhirov | Discovered new exit (range 3) 8442 | -5/Zhirov | Met Zhirov 8454 | -5/Zhirov | Learned location of Quarantine (-2) 8454 | -5/Zhirov | Learned location of Testing (-3) 8454 | -5/Zhirov | Learned location of Command (-1) 8460 | -5/Zhirov | Zhirov requested help retrieving the SGEMP Prototype 8469 | -5/Zhirov | Found Alien Artifact 8469 | -5/Zhirov | Identified Integrated Reactor 8469 | -5/Zhirov | Installed Integrated Reactor, increased core energy generation (+10) 8513 | -5/Zhirov | Found Alien Artifact 8536 | -5/Zhirov | Identified exit to Proximity Caves 8537 | -5/Zhirov | Entered Proximity Caves 8539 | -4/Proximity Caves | Learned location of 1 exit from Research 8557 | -4/Proximity Caves | Found DCF Scrap (12 items) 8673 | -4/Proximity Caves | Discovered exit to Factory (range 10) 8689 | -4/Proximity Caves | Entered Factory 8689 | -4/Factory | Evolved 2 slots: Utility x2 8690 | -4/Factory | Identified exit to Extension 8692 | -4/Factory | Loaded intel: 4 garrison access locations 8714 | -4/Factory | Watched by a mysterious "MATRIX" hacker 8714 | -4/Factory | Identified exit to Upper Caves 8714 | -4/Factory | Identified exit to Armory 9371 | -4/Factory | Identified Transdimensional Reconstructor 9371 | -4/Factory | Warped through subspace 9371 | -4/Factory | Discovered new exit (range 1) 9371 | -4/Factory | Identified exit to Research 9442 | -4/Factory | Spotted B-86 Titan 9516 | -4/Factory | Entered Upper Caves 9660 | -4/Upper Caves | Encountered a Warlord checkpoint 9661 | -4/Upper Caves | Build established: Hacker-Scout 9769 | -4/Upper Caves | Discovered new exit (range 17) 9770 | -4/Upper Caves | Learned Research trap positions 9783 | -4/Upper Caves | Identified exit to Upper Caves 9783 | -4/Upper Caves | Entered another Upper Caves area 9790 | -4/Upper Caves | Encountered a Warlord checkpoint 9802 | -4/Upper Caves | Learned location of Armory (-4) 9985 | -4/Upper Caves | Discovered new exit (range 6) 9986 | -4/Upper Caves | Identified exit to Warlord 10007 | -4/Upper Caves | Entered Warlord 10092 | -4/Warlord | Opened Warlord's prototype stash 10143 | -4/Warlord | Build established: Hacker-Ninja 10175 | -4/Warlord | Received a Watcher feed algorithm from an ecstatic Tinkerer 10175 | -4/Warlord | Ran a Watcher feed algorithm 10193 | -4/Warlord | Found Prototype Special Weapon 10193 | -4/Warlord | Identified RU-N14's Throwing Claymores v3 10195 | -4/Warlord | Found RU-N14's Throwing Claymores v3 10197 | -4/Warlord | Found RU-N14's Throwing Claymores v3 10218 | -4/Warlord | Warlord's base attacked by MAIN.C 10225 | -4/Warlord | Met Warlord 10240 | -4/Warlord | Found RU-N14's Throwing Claymores v3 10241 | -4/Warlord | Found RU-N14's Throwing Claymores v3 10243 | -4/Warlord | Found RU-N14's Throwing Claymores v3 10279 | -4/Warlord | Found Prototype Energy Gun 10279 | -4/Warlord | Identified Vortex Shotgun 10282 | -4/Warlord | Found Prototype Energy Gun 10282 | -4/Warlord | Identified Vortex Rifle 10285 | -4/Warlord | Found Prototype Launcher 10285 | -4/Warlord | Identified Vortex Catalyst Activator 10348 | -4/Warlord | Opened side exit 10350 | -4/Warlord | Spotted B-90 Cyclops 10550 | -4/Warlord | Spotted Striker 10568 | -4/Warlord | Warlord forces counterattacked 10709 | -4/Warlord | Spotted Executioner 10714 | -4/Warlord | Discovered new exit (range 8) 10716 | -4/Warlord | Identified exit to Proximity Caves 10716 | -4/Warlord | Entered Proximity Caves 10735 | -3/Proximity Caves | Lost 8 allies 10847 | -3/Proximity Caves | Spotter reported a threat 10917 | -3/Proximity Caves | Spotter reported a threat 10935 | -3/Proximity Caves | Discovered exit to Research (range 6) 10941 | -3/Proximity Caves | Entered Research 10941 | -3/Research | Evolved 2 slots: Propulsion x1, Utility x1 10942 | -3/Research | Identified exit to Research 10943 | -3/Research | Loaded intel: 94 trap records 11475 | -3/Research | Discovered exit to Research (range 21) 11491 | -3/Research | Entered another Research area 11491 | -2/Research | Warlord forces began assault on 0b10 11491 | -2/Research | Evolved 2 slots: Utility x1, Weapon x1 11496 | -2/Research | Spotted B-90 Cyclops 11504 | -2/Research | Identified exit to Access 11504 | -2/Research | Identified exit to Quarantine 11587 | -2/Research | Met up with Warlord 11601 | -2/Research | Research machine network offline 11654 | -2/Research | Took control of God Mode 11654 | -2/Research | Attacked by Warlord forces 11656 | -2/Research | Attacked by Warlord 11659 | -2/Research | Spotted FF-RVW(K) 11659 | -2/Research | Spotted O3-83Z(K) 11662 | -2/Research | Destroyed FF-RVW(K) 11665 | -2/Research | Allies destroyed O3-83Z(K) 11669 | -2/Research | Destroyed Warlord 11671 | -2/Research | Warlord destroyed during the assault 11704 | -2/Research | Borebot progress halted 11705 | -2/Research | Spotted IO-54V(g) 11707 | -2/Research | Spotted UR-G0I(B) 11707 | -2/Research | Spotted O5-A4R(B) 11709 | -2/Research | Destroyed UR-G0I(B) 11756 | -2/Research | Spotted Striker 11777 | -2/Research | Core destroyed Last Messages --------------- 11747_ Emergency Access malfunctions. 11747_ Door malfunctions. 11754_ Imp. Ion Engine destroyed. 11759_ J3-2F9(T) shreds Wall. 11759_ J3-2F9(T) shreds Earth. 11763_ J3-2F9(T) shreds Wall. 11763_ J3-2F9(T) shreds Earth. 11764_ Sneak attack on J3-2F9(T). 11766_ J3-2F9(T) shreds Wall. 11766_ J3-2F9(T) shreds Earth. 11767_ Sneak attack on J3-2F9(T). 11769_ The unstable cave ceiling collapses. 11770_ Sneak attack on J3-2F9(T). 11770_ J3-2F9(T) shreds Wall. 11770_ J3-2F9(T) shreds Earth. 11773_ Chain reaction triggered in Rnf. Antimatter Reactor. 11773_ Terrain Scanner destroyed. 11777_ J3-2F9(T) shreds... 11777_ J3-2F9(T) shreds Earth. Map ----- +----------------------------------------------------+ | #???????????????????????????? | | #???????????????????????????? | | % # ??????????????????????????? | | """"#############+##"##??????????????????????????? | | " ##?##??### #??????????????????????????? | | ########?#??#? #??????????????????????????? | | #?#####?##??#? #??????????????????????????? | | ##?#?##?#????# #??????????????????????????? | | #?###?#?###? # #??????????????????????????? | | #?######## ?# #??????????????????????????? | | # # #? ???????????????????????????? | | # ## ? ????????????????????????????? | | # ## ?####???????????????????????? | | / """ ## ## #?????#?#?????????????????????? | | # """" # ###???###?#???????????????????? | | # """" # ??????#?##?#??????????????????? | | # """ # ??????##???????????????????????? | | # #? ??###???#?##??#?????????????????? | | # ? ! #??##/#########?##?#????????????????????? | | ###"######### # #????#?#??#???????????????? | | / #?###?#?###???????????????? | | ###[%=# ###?#??#??#???????????????? | | ####!## ####??????#???????????????? | | K "#?# ## ; ##????#?????????????????? | | "% "" "### ## ##?????????????????????? | | ; g ; ;;;; TTT@#?#??#?????????????????? | | g ; ; TTT #?#???#????????????????? | | g;;; ; TTT ##??#??????????????????? | | ;### #?????##????????????????? | | t "#### # #?##????????????????????? | | * # ###########?????##????????????????? | | #??##???####????##????????????????? | | ##?????###?????#??????????????????? | | ####????#???#??#??????????????????? | | # #########?#????????#?#???????????????????? | | #########??##??#???#?????????????????????? | | ######??###????#?###???????????????????????? | | ##??#?????#?##?#???????????????????????????? | | #?#?###?????#?##??#????????????????????????? | | #???#?????#?#????#?????????????????????????? | | ##??#????##?#??##????#?????????????????????? | | #?###??#?###??#????????????????????????????? | | #####"#####??########??????#?????????????????????? | | *% ##### #??#?#??#????????????????????? | | ] ##??#??##????????????????????? | | > #?##?##??????????????????????? | | #??#???#?????????????????????? | | "" ##### #?#???####?##????????????????? | | """ ###?#### ###?#?######????#?????????????? | | T" #?#??### #??#?##?###??#?????#??????????? | +----------------------------------------------------+ Best States ------------- Heat Dissipation 49 Energy Generation 39 Energy Capacity 865 Matter Stores 300 Matter Capacity 300 Sight Range 22 Robot Scan Range 16 Terrain Scan Range 16 Terrain Scan Density 510 Cloak Strength 3 Power Amplification 20 Utility Shielding 90 Evasion (%) 72 Targeting Accuracy 10 Recoil Reduction 3 Offensive Hacking 28 Defensive Hacking 37 Item Schematics ----------------- Airjet | -8/Materials | Hacked Combat Drone Bay | -7/Data Miner | Free Lgt. Regenerative Plating | -7/Data Miner | Free Cld. Cesium-ion Thruster | -7/Data Miner | Free Thermal Defense Suite | -7/Data Miner | Free Imp. Heavy Laser | -7/Data Miner | Free Adv. System Shield | -7/Data Miner | Free Thunder Leg | -7/Data Miner | Free Lrn. Proton Cannon | -7/Data Miner | Free Gyrokinetic Inverter | -7/Data Miner | Free Adv. Trap Extractor | -7/Data Miner | Free Adv. Thermal Shield | -7/Data Miner | Free Assault Drone Bay | -5/Zhirov | Free Exp. Heat Sink | -5/Zhirov | Free Exp. Optical Array | -5/Zhirov | Free Imp. Arc Thrower | -5/Zhirov | Free Robot Schematics ------------------ G-47 Trooper | -7/Data Miner | Free E-15 Imp | -7/Data Miner | Free M-28 Smith | -7/Data Miner | Free R-10 Processor | -7/Data Miner | Free B-60 Warrior | -7/Data Miner | Free G-50 Soldier | -7/Data Miner | Free B-48 Gladiator | -7/Data Miner | Free Fabricated ------------ Adv. Signal Interpreter | x2 | -7/Factory | Preloaded Cld. Cesium-ion Thruster | x1 | -6/Factory Repaired ---------- Nothing Studied --------- Hover Unit | -8/Materials | Hacked Imp. Treads | -8/Materials | Hacked Katana | -8/Materials | Hacked Lgt. Ion Engine | -8/Materials | Hacked Gravmag System | -7/Factory | Hacked Chainsword | -7/Factory | Hacked Antigrav System | -5/Factory | Hacked Impulse Thruster | -4/Factory | Hacked Field Propulsion Drive | -4/Factory | Hacked Gyrokinetic Inverter | -4/Factory | Hacked Q-thruster | -3/Research | Hacked Alien Tech Used ----------------- Integrated Reactor Transdimensional Reconstructor Achievements -------------- Godhack Challenges ------------ None Game ------ Seed CountertargetingConstructBox Manual? 0 Play Time 02:28:05 Cumulative 211.5 hours Start 2026.08.02 @ 13:01:50 End 2026.08.02 @ 19:29:24 Sessions 4 Manual Loads 0 Difficulty Rogue Special Mode None Game No. 123 Rogue 123 Adventurer 0 Explorer 0 Win Type - Total 4 Types 4/0/0/0/0/0/0/0/0/0 Lore% 77 Gallery% 66 Achievement% 57 Wizard Run 0 Options --------- Layout 1 ASCII 0 Keyboard 0 Movement Numpad Keybinds 0 Fullscreen 1 Font 24/Smallcaps Map View 50x35 Zoom Use 0% Tactical HUD 1 Map Filters NONE Filters NONE Steam 1 RUN: 2ac465fe-9f6c-4e1b-bd19-54242faf03af